bitfinex/quotes_ETHUSD_20220215
["timestamp","ask_amount","ask_price","bid_price","bid_amount"]
[1644942338689,3.9053,3115.2,3114.5,0.80358]
[1644942338888,2.17055382,3115.1,3114.5,0.001]
[1644942339087,0.3,3115.0,3114.3,0.301]
[1644942339489,3.6053,3115.2,3114.3,0.301]
[1644942339490,3.9053,3115.2,3114.3,0.301]
[1644942339688,1.12511613,3114.8,3114.3,0.301]
[1644942339891,0.3,3114.8,3114.3,1.4848622]
[1644942340087,1.42511613,3114.8,3114.4,0.001]
[1644942340289,1.42511613,3114.8,3114.4,0.80363]
[1644942340731,1.12511613,3114.8,3114.4,0.80363]
[1644942340935,1.12511613,3114.8,3114.5,0.00437551]
[1644942341533,0.3,3114.9,3114.5,0.00437551]
[1644942341931,1.12511613,3114.7,3114.5,0.00437551]
[1644942342335,1.42511613,3114.7,3114.5,0.00437551]
[1644942342539,20.14511613,3114.7,3114.3,0.00537551]
[1644942342735,20.14511613,3114.7,3113.9,1.40216187]
[1644942342736,1.12511613,3114.5,3113.9,1.40216187]
[1644942342934,0.97607714,3114.6,3114.2,0.00252202]
[1644942343335,1.12511613,3114.5,3114.2,0.00252202]
[1644942343938,1.12511613,3114.5,3113.9,0.80281]
[1644942344136,1.12511613,3114.5,3114.2,0.00252202]
[1644942344582,1.12511613,3114.3,3114.2,0.00689753]
[1644942344790,21.21333912,3114.3,3114.2,2.202e-05]
[1644942344986,21.21333912,3114.3,3113.2,0.00537551]
[1644942344987,0.00077798,3114.1,3113.2,0.00537551]
[1644942345186,1.12511613,3113.7,3113.3,0.00437551]
[1644942345381,0.3,3113.7,3113.3,0.00437551]
[1644942345580,3.29857798,3114.1,3113.4,0.92565859]
[1644942345781,4.60999639,3114.1,3113.5,0.00437551]
[1644942345980,4.60999639,3114.1,3113.5,0.80727551]
[1644942346179,4.60999639,3114.1,3113.6,0.00437551]
[1644942346379,0.8029014,3114.0,3113.6,0.00437551]
[1644942346780,1.92801753,3114.0,3113.6,0.00437551]
[1644942347179,1.12511613,3113.9,3113.6,0.00437551]
[1644942347382,0.8029014,3114.0,3113.6,0.00437551]
[1644942347580,4.60999639,3114.1,3113.2,0.00437551]
[1644942347581,1.12511613,3113.7,3113.2,0.00437551]
[1644942347784,0.3,3113.7,3113.2,0.00437551]
[1644942347979,1.12511613,3113.6,3113.2,0.00437551]
[1644942348232,4.30999639,3114.1,3113.2,0.00437551]
[1644942348233,7.34096962,3114.1,3113.2,0.00437551]
[1644942348633,7.34096962,3114.1,3113.2,0.00537551]
[1644942348833,0.8028701,3114.0,3113.2,0.00537551]
[1644942349035,0.8028701,3114.0,3113.5,0.94315928]
[1644942349234,4.30999639,3114.1,3113.5,0.94315928]
[1644942349235,4.30999639,3114.1,3113.6,0.00437551]
[1644942349433,1.12511613,3114.0,3113.6,0.00437551]
[1644942349837,19.84511613,3113.7,3113.6,0.00437551]
[1644942350036,19.84511613,3113.7,3113.2,0.00437551]
[1644942350236,19.84511613,3113.7,3113.6,0.00269136]
[1644942350237,1.42511613,3113.7,3113.6,0.00269136]
[1644942350637,1.12511613,3113.7,3113.6,0.00269136]
[1644942351037,1.12511613,3113.7,3113.1,0.00437551]
[1644942351337,0.88069801,3113.6,3113.1,0.00437551]
[1644942351638,0.803,3113.8,3113.5,0.00269146]
[1644942351838,1.12511613,3113.6,3113.5,0.00269146]
[1644942352283,1.12511613,3113.6,3112.9,0.77183441]
[1644942352488,1.12511613,3113.8,3113.4,0.00252212]
[1644942352682,0.8577999,3113.7,3113.4,0.00252212]
[1644942353087,3.29857798,3114.1,3113.4,0.00252212]
[1644942353483,3.29857798,3114.1,3113.0,0.80790488]
[1644942353885,1.12511613,3113.9,3113.0,1.61086488]
[1644942354087,1.09719689,3113.6,3113.2,0.80690488]
[1644942354287,1.12511613,3113.9,3113.2,0.80690488]
[1644942355086,3.29857798,3114.1,3113.1,0.001]
[1644942355286,0.80302,3113.7,3113.1,0.001]
[1644942355486,1.12511613,3113.5,3113.0,0.80790488]
[1644942355739,1.12511613,3113.5,3113.0,0.001]
[1644942355932,1.12511613,3113.5,3113.0,0.80297]
[1644942356232,2.08460466,3113.8,3113.0,0.80397]
[1644942356434,1.12511613,3113.5,3113.0,0.80397]
[1644942356633,0.95948853,3113.8,3113.0,0.001]
[1644942356634,18.72,3113.4,3113.0,0.001]
[1644942356837,1.11314036,3113.2,3112.8,0.00192209]
[1644942357033,1.11314036,3113.2,3112.7,0.80690488]
[1644942357232,1.11314036,3113.2,3112.8,0.33351542]
[1644942357433,1.12511613,3113.0,3112.8,0.33720585]
[1644942357634,1.11314036,3113.2,3112.9,0.33351542]
[1644942357835,1.12511613,3113.0,3112.9,0.33351542]
[1644942358243,19.84511613,3113.0,3112.9,0.33351542]
[1644942358437,1.12511613,3113.0,3112.9,0.33351542]
[1644942358639,4.75645141,3113.0,3112.9,0.33351542]
[1644942358838,19.84511613,3113.0,3112.9,0.33351542]
[1644942359137,1.12511613,3113.0,3112.9,0.33351542]
[1644942359480,4.70772691,3113.0,3112.9,0.33351542]
[1644942359682,23.42772691,3113.0,3112.6,0.00617078]
[1644942359883,1.12511613,3112.8,3112.6,0.00617078]
[1644942360894,1.12511613,3112.8,3112.2,0.01234156]
[1644942360895,18.72,3112.5,3112.2,0.01234156]
[1644942361086,22.40291962,3112.4,3112.2,0.01234156]
[1644942361284,0.384,3112.9,3112.2,0.01234156]
[1644942361285,20.97682789,3112.3,3112.2,0.01234156]
[1644942361484,2.25682789,3112.3,3112.2,0.01234156]
[1644942361685,1.13171176,3112.3,3112.2,0.05440489]
[1644942361885,1.13171176,3112.3,3112.2,0.00440489]
[1644942362086,0.80339,3112.4,3112.2,0.00440489]
[1644942362287,1.12511613,3112.3,3112.2,0.00440489]
[1644942362686,19.84511613,3112.3,3112.2,0.00440489]
[1644942363086,1.12511613,3112.3,3112.2,0.00440489]
[1644942363335,1.12511613,3112.5,3112.2,0.00440489]
[1644942363541,1.1725043,3112.4,3112.2,0.00440489]
[1644942364136,3.88482,3112.7,3112.2,0.00440489]
[1644942364335,3.0815,3112.7,3112.2,0.00440489]
[1644942365135,0.99552882,3112.5,3112.2,0.00440489]
[1644942365436,2.12064495,3112.5,3112.2,0.00440489]
[1644942365636,1.12511613,3112.5,3112.2,0.00440489]
[1644942365836,1.12511613,3112.5,3112.2,0.00709568]
[1644942366237,1.12511613,3112.3,3112.2,0.00709568]
[1644942366438,1.12511613,3112.3,3111.4,8.79660894]
[1644942366439,6.8,3112.2,3111.4,8.79660894]
[1644942366640,6.8,3112.2,3110.9,0.01606463]
[1644942366641,19.75732647,3112.1,3110.9,0.01606463]
[1644942366841,1.12511613,3111.0,3110.9,0.01606463]
[1644942367096,1.92601613,3111.0,3110.9,0.01606463]
[1644942367894,0.8009,3111.0,3110.9,0.01606463]
[1644942368094,1.12511613,3111.2,3110.9,0.01606463]
[1644942368793,1.12511613,3111.0,3110.6,3.73312123]
[1644942368995,0.384,3111.4,3110.6,3.73312123]
[1644942369196,9.81862,3111.9,3110.6,3.73312123]
[1644942369396,1.12511613,3111.6,3110.6,4.03312123]
[1644942369594,1.12511613,3111.3,3110.6,4.03312123]
[1644942370839,1.12511613,3111.6,3110.6,4.03312123]
[1644942371037,9.015,3111.9,3110.7,4.90184461]
[1644942371242,1.12511613,3111.7,3110.7,4.90184461]
[1644942371440,1.12511613,3111.6,3111.2,1.09400116]
[1644942371640,1.12511613,3111.6,3111.3,0.001]
[1644942371936,1.12511613,3111.6,3111.0,0.00267299]
[1644942372137,3.3177,3111.9,3111.0,0.00267299]
[1644942372339,1.12511613,3111.5,3111.0,0.00267299]
[1644942372537,1.12511613,3111.4,3111.0,0.00267299]
[1644942372737,1.12511613,3111.4,3111.0,0.9138822]
[1644942372937,3.3177,3111.9,3111.0,0.9138822]
[1644942373141,3.3177,3111.9,3111.1,3.5]
[1644942373339,4.44281613,3111.9,3111.2,0.001]
[1644942373653,4.44281613,3111.9,3111.1,0.00367296]
[1644942373842,3.3177,3111.9,3111.2,0.80337]
[1644942374040,3.3177,3111.9,3111.5,0.9379737]
[1644942374238,3.3177,3111.9,3111.5,1.2379737]
[1644942374483,3.3177,3111.9,3111.6,0.001]
[1644942374784,3.3177,3111.9,3111.3,0.00267281]
[1644942374987,4.44281613,3111.9,3111.3,0.00267281]
[1644942375184,4.44281613,3111.9,3111.1,0.301]
[1644942375584,3.3177,3111.9,3111.4,0.00267275]
[1644942375784,3.3177,3111.9,3111.7,0.8376129]
[1644942376089,0.00259387,3112.3,3111.7,0.8376129]
[1644942376285,0.00259387,3112.3,3111.7,1.0934]
[1644942376492,1.12411613,3112.4,3111.7,0.7934]
[1644942376686,0.00259421,3112.3,3111.7,1.0934]
[1644942377288,1.12671034,3112.3,3112.0,1.14590563]
[1644942377688,1.12411613,3112.3,3112.0,1.14590563]
[1644942377888,0.00256197,3112.3,3112.0,1.14590563]
[1644942378534,0.00256197,3112.3,3112.0,1.44590563]
[1644942378730,3.3085,3112.7,3112.0,1.44590563]
[1644942378930,3.3085,3112.7,3112.1,0.80314]
[1644942379136,0.00256197,3112.3,3112.2,0.8031384]
[1644942379334,0.00256197,3112.3,3112.2,1.6062584]
[1644942380135,3.2839,3113.2,3112.5,0.80303]
[1644942380333,1.12411613,3112.9,3112.7,0.96963508]
[1644942380534,1.12411613,3112.9,3112.7,1.26963508]
[1644942380932,1.12411613,3113.1,3112.7,0.96963508]
[1644942381134,3.2839,3113.2,3112.3,1.60618]
[1644942381331,3.2839,3113.2,3112.3,1.90618]
[1644942381534,1.12671048,3113.1,3112.3,2.70929]
[1644942381736,0.00259435,3113.1,3112.5,0.80313]
[1644942381984,1.12411613,3113.0,3112.5,0.80313]
[1644942382183,1.12411613,3113.0,3112.7,1.13327432]
[1644942382386,1.12411613,3113.0,3112.8,0.001]
[1644942382585,1.12411613,3113.0,3112.6,0.001]
[1644942382786,1.12411613,3112.8,3112.4,0.001]
[1644942382989,0.00259435,3112.9,3112.4,0.80414]
[1644942383188,1.12411613,3112.8,3112.4,0.80414]
[1644942383387,1.12411613,3112.8,3112.5,0.3]
[1644942383594,1.12411613,3112.8,3112.5,0.301]
[1644942383788,3.2839,3113.2,3112.5,1.47809332]
[1644942383990,1.12411613,3112.8,3112.6,0.00529104]
[1644942384291,3.2839,3113.2,3112.6,0.00529104]
[1644942384292,1.12411613,3113.0,3112.6,0.00529104]
[1644942384690,3.2839,3113.2,3112.6,0.00529104]
[1644942384889,1.12411613,3112.9,3112.6,0.00529104]
[1644942385291,1.12411613,3112.7,3112.6,0.00529104]
[1644942385491,1.12411613,3112.7,3112.2,0.00529104]
[1644942386131,1.12411613,3112.3,3112.0,0.00429104]
[1644942386732,1.12411613,3112.3,3112.1,1.13850128]
[1644942386935,1.12411613,3112.3,3112.2,0.001]
[1644942387334,1.12411613,3112.3,3111.9,0.00529104]
[1644942388134,1.12411613,3112.3,3112.0,1.71932455]
[1644942388434,1.12411613,3112.3,3112.1,0.00529104]
[1644942388634,1.12411613,3112.3,3112.1,0.00429104]
[1644942389485,1.12411613,3112.3,3112.1,0.00529104]
[1644942389885,3.62831016,3113.0,3112.1,0.80931518]
[1644942390086,0.00261338,3112.4,3112.1,0.00186414]
[1644942390281,0.00261338,3112.4,3112.2,0.80743687]
[1644942390890,1.12411613,3112.7,3112.3,0.3]
[1644942391087,1.12411613,3112.7,3112.4,0.80308]
[1644942391283,0.00261338,3112.5,3112.4,0.80408]
[1644942391485,0.00261338,3112.5,3112.4,2.4102033]
[1644942391683,0.00261338,3112.5,3112.4,3.5132833]
[1644942392086,1.12411613,3113.0,3112.4,3.5132833]
[1644942392283,1.12411613,3113.0,3112.5,1.07907]
[1644942392584,0.00161338,3112.6,3112.5,1.07807]
[1644942392785,0.00161338,3112.6,3112.5,2.88114]
[1644942393234,5.169,3114.3,3112.5,3.18114]
[1644942393235,3.3648,3113.8,3112.5,3.18114]
[1644942393441,0.00077798,3114.1,3113.0,0.80271]
[1644942393635,0.00077798,3114.1,3113.2,2.4081791]
[1644942393836,0.00077798,3114.1,3113.4,0.80271]
[1644942394236,0.00077798,3114.1,3113.2,0.8385]
[1644942394237,0.00077798,3114.1,3113.5,1.44782575]
[1644942394435,0.00077798,3114.1,3113.6,0.80277]
[1644942394639,0.00077798,3114.1,3113.6,2.4082834]
[1644942394837,0.00261088,3113.9,3113.7,0.80276]
[1644942395040,1.12411613,3114.4,3113.7,0.80276]
[1644942395238,1.12411613,3114.4,3113.8,0.3]
[1644942395636,1.12411613,3114.4,3113.9,2.4078704]
[1644942395836,1.12411613,3114.4,3114.0,1.60524]
[1644942396036,1.12411613,3114.4,3114.1,0.3]
[1644942396438,1.12411613,3114.7,3114.1,0.3]
[1644942396637,1.12411613,3114.9,3114.1,0.3]
[1644942396837,3.5,3115.1,3114.1,1.10261]
[1644942397088,1.12411613,3114.4,3114.2,0.83710895]
[1644942397294,25.11526053,3115.3,3114.2,0.83710895]
[1644942397489,1.12411613,3114.4,3114.2,0.83710895]
[1644942397690,1.12411613,3114.4,3114.2,0.83810895]
[1644942398489,1.07411613,3114.4,3114.2,0.83810895]
[1644942398688,1.07411613,3114.4,3114.2,0.001]
[1644942399895,1.07411613,3114.4,3114.3,0.00084979]
[1644942402039,0.00260435,3114.5,3114.3,3.65775051]
[1644942402237,0.00260435,3114.5,3114.4,1.10359]
[1644942402453,0.25,3115.1,3114.4,3.03579]
[1644942402636,0.25,3115.1,3114.6,1.03762155]
[1644942402839,0.25,3115.1,3114.8,0.80235]
[1644942403036,0.25,3115.1,3114.9,3.41988703]
[1644942403237,0.25,3115.1,3115.0,0.001]
[1644942404588,1.07411613,3115.5,3115.1,1.02792291]
[1644942404786,1.32411613,3115.5,3115.2,0.001]
[1644942404990,0.25,3115.5,3115.2,0.001]
[1644942405186,1.07411613,3115.4,3115.2,0.001]
[1644942405887,0.25,3115.5,3115.2,0.001]
[1644942406091,18.72,3116.8,3115.2,0.80339]
[1644942406290,5.7235,3116.9,3115.3,4.1]
[1644942406489,0.25,3116.8,3115.4,0.001]
[1644942406688,0.25,3116.8,3115.7,0.802007]
[1644942406890,1.07411613,3116.2,3115.6,0.18952145]
[1644942407089,0.25,3116.8,3116.0,0.87057992]
[1644942407289,1.07411613,3116.1,3115.7,0.001]
[1644942407492,1.07411613,3116.1,3115.5,1.6044591]
[1644942407493,1.07411613,3115.8,3115.6,0.001]
[1644942407888,1.07411613,3115.8,3114.8,2.40717]
[1644942407889,1.07411613,3116.0,3115.0,0.8024]
[1644942408236,0.25,3116.1,3115.2,1.06636206]
[1644942408237,1.07411613,3115.7,3115.2,1.06636206]
[1644942408436,1.07411613,3115.7,3115.3,0.80329]
[1644942408836,0.25,3116.1,3115.9,1.04359028]
[1644942409038,1.07411613,3116.0,3115.9,1.04359028]
[1644942409237,0.25,3116.1,3115.9,1.04359028]
[1644942410042,0.25,3116.2,3115.9,1.04359028]
[1644942410239,1.07411613,3116.0,3115.9,1.04359028]
[1644942410439,1.07411613,3116.0,3115.6,0.001]
[1644942410639,0.25258486,3116.2,3115.4,0.001]
[1644942410938,1.07411613,3115.8,3115.4,0.001]
[1644942411443,1.07411613,3115.8,3115.4,1.1033094]
[1644942411638,1.07411613,3115.8,3115.6,1.05509561]
[1644942411838,1.07670099,3115.8,3115.7,0.001]
[1644942412089,0.00258486,3115.8,3115.7,0.001]
[1644942412487,1.07411613,3115.8,3115.7,0.001]
[1644942412694,1.07411613,3116.0,3115.7,0.001]
[1644942412889,1.07411613,3115.8,3115.7,0.001]
[1644942413488,0.00258486,3115.9,3115.7,0.001]
[1644942413788,1.07411613,3116.0,3115.7,0.001]
[1644942413989,0.00258486,3115.9,3115.7,0.001]
[1644942414392,0.00258486,3115.9,3115.7,0.8033]
[1644942414590,0.00258486,3115.9,3115.7,2.4078871]
[1644942414991,1.3867,3116.8,3115.8,1.9043966]
[1644942415197,0.00258486,3116.0,3115.8,0.3]
[1644942415391,0.00258486,3116.0,3115.9,1.60426]
[1644942415845,0.00258486,3116.0,3115.9,3.5085473]
[1644942416039,0.00258486,3116.0,3115.9,4.3106345]
[1644942416245,1.1367,3116.8,3115.9,3.0063745]
[1644942416539,0.00258486,3116.1,3115.9,3.0063745]
[1644942416737,0.00258486,3116.1,3115.9,4.6104145]
[1644942416940,0.00258486,3116.1,3115.9,6.39630671]
[1644942417136,0.00258486,3116.1,3116.0,2.40607]
[1644942417337,1.07411613,3116.5,3116.0,2.12734836]
[1644942417540,1.07411613,3116.5,3116.2,0.802075]
[1644942417742,1.07411613,3116.5,3116.2,1.102075]
[1644942418139,1.07411613,3116.3,3116.2,0.3]
[1644942418739,0.25,3116.8,3116.4,0.80216]
[1644942418938,1.32411613,3116.8,3116.4,1.6043093]
[1644942419139,1.07411613,3116.5,3116.4,1.6043093]
[1644942419339,1.07411613,3116.5,3116.4,0.80216]
[1644942419587,0.25,3116.8,3116.1,2.51105774]
[1644942419782,1.02411613,3116.3,3116.1,2.51105774]
[1644942419983,1.02411613,3116.3,3116.1,0.90688774]
[1644942420584,19.74411613,3116.3,3115.9,0.80228]
[1644942420789,19.74411613,3116.3,3115.0,5.9722]
[1644942420790,1.02411613,3116.0,3115.7,0.001]
[1644942420998,1.02411613,3116.0,3113.3,0.16737086]
[1644942420999,0.160311,3115.6,3113.3,0.16737086]
[1644942421186,1.02411613,3113.4,3112.8,0.80690488]
[1644942421388,1.02411613,3113.4,3112.7,0.0026788]
[1644942421389,6.02411613,3112.9,3112.7,0.0026788]
[1644942421589,1.02411613,3112.9,3112.7,0.0026788]
[1644942421785,20.9074,3112.8,3112.7,0.0026788]
[1644942421983,20.9074,3112.8,3112.7,7.88e-05]
[1644942421984,19.9074,3112.8,3112.7,7.88e-05]
[1644942422188,20.9074,3112.8,3111.9,0.00429187]
[1644942422387,1.02411613,3112.0,3111.9,0.00429187]
[1644942422783,1.02411613,3112.0,3111.9,1.01960082]
[1644942426040,3.5974177,3112.7,3111.9,1.01960082]
[1644942426041,0.3,3112.9,3111.9,1.01960082]
[1644942426240,19.77314,3113.4,3111.9,1.01960082]
[1644942426439,3.5,3113.3,3111.9,1.01960082]
[1644942426638,3.5,3113.3,3111.9,1.31960082]
[1644942426840,4.9232,3113.7,3112.1,0.23953887]
[1644942427084,4.9232,3113.7,3113.5,1.09434051]
[1644942427085,3.5,3113.6,3113.5,1.09434051]
[1644942427288,0.36539342,3113.3,3113.1,0.99540499]
[1644942428292,0.36539342,3113.3,3112.1,0.00429187]
[1644942428489,0.36539342,3113.3,3111.9,0.00429187]
[1644942428490,18.97,3113.0,3111.9,0.00429187]
[1644942428886,4.49663029,3112.9,3111.9,0.00429187]
[1644942429087,1.0,3112.9,3111.9,0.00429187]
[1644942429387,0.634,3113.0,3112.5,1.05283458]
[1644942429589,2.24064,3113.0,3112.5,1.05283458]
[1644942429786,0.80329,3112.7,3112.5,1.05283458]
[1644942430588,1.0,3112.9,3112.5,1.05283458]
[1644942430846,0.384,3112.9,3112.5,1.05283458]
[1644942431844,0.25,3113.0,3112.5,1.05283458]
[1644942431845,0.25,3113.0,3112.5,1.35283458]
[1644942432041,0.25,3113.0,3112.5,1.355542]
[1644942433041,0.25,3113.0,3112.5,1.05283458]
[1644942433241,0.25,3113.0,3112.5,1.05554201]
[1644942434242,0.25,3113.0,3112.5,1.05283458]
[1644942434497,0.25,3113.0,3112.5,1.05554201]
[1644942434698,0.25,3113.0,3112.5,1.35554201]
[1644942435300,0.25,3113.0,3112.5,1.35283458]
[1644942435703,0.25,3113.0,3112.5,1.35554201]
[1644942436103,0.25,3113.0,3112.6,0.001]
[1644942436502,18.97,3113.0,3112.6,0.001]
[1644942436701,19.354,3113.0,3111.9,0.00529187]
[1644942437103,3.48613699,3112.9,3112.5,0.00270745]
[1644942437302,22.19492125,3112.9,3112.5,0.00270745]
[1644942437501,0.98656107,3112.8,3112.5,0.00270745]
[1644942437807,19.104,3112.7,3111.9,0.00529187]
[1644942438000,18.72,3112.4,3111.9,0.00529187]
[1644942438235,18.72,3112.4,3112.0,0.01083143]
[1644942438236,0.25,3112.4,3112.0,0.01083143]
[1644942438740,0.634,3112.4,3112.0,0.01083143]
[1644942438936,0.634,3112.4,3112.0,0.01183143]
[1644942439137,0.634,3112.4,3112.0,0.001]
[1644942439338,0.634,3112.4,3112.0,0.00370773]
[1644942440137,0.634,3112.4,3112.0,0.001]
[1644942440537,0.634,3112.4,3112.0,0.00370773]
[1644942441344,0.634,3112.4,3112.0,0.001]
[1644942441543,1.4373985,3112.4,3112.0,0.001]
[1644942441740,1.4373985,3112.4,3112.0,0.00366776]
[1644942441989,0.8034,3112.3,3112.0,0.00366776]
[1644942442191,19.5234,3112.3,3112.0,0.00366776]
[1644942442494,19.5234,3112.3,3112.0,0.00266776]
[1644942442495,0.8034,3112.3,3112.0,0.00266776]
[1644942442692,0.8034,3112.3,3111.9,0.00529187]
[1644942442890,0.8034,3112.3,3112.0,0.00266779]
[1644942443290,0.634,3112.4,3112.0,0.00266779]
[1644942443489,0.634,3112.4,3112.0,0.00366779]
[1644942443691,0.25,3112.4,3112.0,0.00366779]
[1644942443993,0.25,3112.4,3112.0,0.00366776]
[1644942445091,0.25,3112.4,3112.0,0.001]
[1644942445292,0.25,3112.4,3112.0,0.00370773]
[1644942446337,0.25,3112.4,3112.0,0.001]
[1644942446539,0.25,3112.4,3112.0,0.00370773]
[1644942447439,0.25,3112.4,3112.0,0.001]
[1644942447638,7.21370262,3113.3,3112.0,0.00370773]
[1644942447639,5.60719342,3113.3,3112.0,0.00370773]
[1644942447837,0.25,3113.0,3112.0,0.00370773]
[1644942448034,0.25,3113.0,3112.1,1.60602]
[1644942448238,0.25,3113.0,3112.2,0.001]
[1644942448436,0.25,3113.0,3112.9,1.18582759]
[1644942448638,0.25,3113.0,3112.9,1.18682759]
[1644942449240,0.25,3113.0,3112.9,0.001]
[1644942449494,0.0021985,3112.8,3112.4,0.00270748]
[1644942449891,0.0021985,3112.8,3111.9,0.00529187]
[1644942450091,0.001205,3112.8,3112.4,0.00270748]
[1644942450292,0.001205,3112.8,3112.4,0.95350547]
[1644942450492,18.72,3112.6,3112.4,0.00270748]
[1644942450695,0.001205,3112.8,3112.4,0.00270748]
[1644942450696,0.385205,3112.8,3112.4,0.00270748]
[1644942450994,0.685205,3112.8,3111.9,0.00529187]
[1644942451393,0.685205,3112.8,3112.4,0.001907]
[1644942451596,19.74470421,3112.5,3112.4,0.001907]
[1644942451795,20.93206421,3112.5,3112.4,0.001907]
[1644942451994,21.93206421,3112.5,3112.4,0.001907]
[1644942452194,21.93206421,3112.5,3111.9,0.00529187]
[1644942452396,2.43736,3112.5,3111.9,0.00529187]
[1644942452597,1.634,3112.5,3112.3,0.00271022]
[1644942452796,0.25,3112.5,3112.3,0.00271022]
[1644942452997,0.25,3112.5,3111.8,4.51217282]
[1644942453554,0.25,3112.5,3112.2,0.95250478]
[1644942453755,0.25,3112.5,3111.8,4.80133033]
[1644942453756,18.72,3112.4,3111.8,4.50133033]
[1644942454158,0.25,3112.5,3111.8,4.50133033]
[1644942454654,0.25,3112.5,3112.1,1.114119]
[1644942455254,0.25,3112.5,3112.1,1.064119]
[1644942456154,0.25,3112.5,3112.1,1.06602354]
[1644942457085,0.25,3112.5,3112.1,1.064119]
[1644942457287,0.25,3112.5,3112.1,1.06682931]
[1644942457687,0.25,3112.5,3112.1,1.86994931]
[1644942458090,0.25,3112.5,3112.2,0.001]
[1644942458790,0.25,3112.5,3112.2,1.6072]
[1644942458991,0.25,3112.5,3112.3,0.001]
[1644942459193,0.25,3112.5,3112.2,0.8041]
[1644942459391,0.25,3112.5,3112.2,0.001]
[1644942464252,1.0532558,3112.5,3112.2,0.001]
[1644942464686,0.25,3112.5,3112.2,0.001]
[1644942464888,1.05331,3112.5,3112.2,0.001]
[1644942465591,1.8565666,3112.5,3112.2,0.001]
[1644942465992,1.36884968,3112.4,3112.2,0.001]
[1644942466189,2.6598966,3112.5,3112.2,0.001]
[1644942466795,1.36883965,3112.4,3112.2,0.001]
[1644942466990,2.6598966,3112.5,3112.2,0.001]
[1644942467892,1.36884212,3112.4,3112.2,0.001]
[1644942468539,2.17212602,3112.4,3112.1,0.00271399]
[1644942468744,2.97558212,3112.3,3112.1,0.00271399]
[1644942468946,1.36884212,3112.2,3111.8,4.33724432]
[1644942469137,1.36884212,3112.1,3111.8,4.33724432]
[1644942469343,1.85677,3112.5,3112.0,0.00181467]
[1644942469537,1.36901632,3112.4,3112.0,0.00181467]
[1644942469838,1.80257696,3112.2,3112.0,0.00181467]
[1644942470036,1.36901632,3112.1,3112.0,0.00181467]
[1644942470237,1.36901632,3112.1,3111.8,4.33724432]
[1644942470441,0.99916696,3112.2,3111.8,4.33724432]
[1644942471240,1.80252456,3112.2,3111.8,4.33724432]
[1644942471440,0.8033576,3112.2,3111.8,4.33724432]
[1644942472989,0.8033576,3112.2,3111.8,4.33995851]
[1644942473590,0.8033576,3112.2,3111.9,0.001]
[1644942473989,1.6067266,3112.4,3111.9,0.001]
[1644942474190,1.3689131,3112.3,3111.9,0.00371416]
[1644942475191,1.3689131,3112.3,3111.9,0.001]
[1644942475593,2.1722155,3112.3,3111.9,0.00371413]
[1644942475841,0.8033024,3112.3,3111.9,0.00371413]
[1644942476239,0.8033024,3112.3,3111.9,0.001]
[1644942476637,0.8033024,3112.3,3112.0,0.86220822]
[1644942477841,0.25,3112.5,3112.0,0.86220822]
[1644942478143,0.25,3112.5,3112.0,1.6691131]
[1644942478342,0.25,3112.5,3112.1,0.001]
[1644942478540,0.25,3112.5,3112.1,1.03866557]
[1644942478740,0.25,3112.5,3112.2,1.00165457]
[1644942478942,0.25,3112.5,3112.3,0.001]
[1644942479141,0.25,3112.5,3112.3,2.40891]
[1644942479341,0.25,3112.5,3112.4,0.001]
[1644942480192,0.3680921,3113.3,3112.5,0.80301]
[1644942480392,0.251205,3112.8,3112.5,1.60699]
[1644942480592,0.251205,3112.8,3112.6,0.001]
[1644942480992,0.251205,3112.8,3112.5,1.60599]
[1644942481593,0.251205,3112.8,3112.6,0.80298]
[1644942482694,0.251205,3112.8,3112.6,1.96846266]
[1644942483743,0.251205,3112.8,3112.6,1.16548266]
[1644942484749,0.251205,3112.8,3112.3,2.41403488]
[1644942484948,2.0,3112.6,3112.2,0.001]
[1644942485149,2.803282,3112.6,3111.9,0.81061917]
[1644942485749,0.80327,3112.5,3111.9,0.00371429]
[1644942485949,0.80327,3112.5,3112.1,1.02072503]
[1644942486149,1.55655,3112.5,3112.2,0.001]
[1644942486552,0.00219532,3112.0,3111.9,0.00371417]
[1644942486991,1.37118324,3112.0,3111.9,0.00371417]
[1644942487193,1.37118324,3112.0,3111.9,0.001]
[1644942487794,0.96965075,3112.0,3111.9,0.001]
[1644942488193,2.33876245,3112.0,3111.9,0.001]
[1644942488796,2.63876245,3112.0,3111.9,0.001]
[1644942489899,2.63876245,3112.0,3111.8,2.34095508]
[1644942490097,0.80347,3111.9,3111.8,2.34095508]
[1644942490739,0.80347,3111.9,3111.0,0.00427041]
[1644942491040,0.8034768,3111.7,3111.2,0.01084491]
[1644942491241,1.0534768,3111.7,3111.2,0.01084491]
[1644942491438,0.80348,3111.6,3111.2,0.01084491]
[1644942492039,0.80348,3111.6,3111.1,0.00427041]
[1644942492239,0.80348,3111.6,3111.2,0.0027111]
[1644942493141,0.80348,3111.6,3111.1,0.00427041]
[1644942493342,0.80348,3111.6,3111.2,0.0027111]
[1644942494490,0.80348,3111.6,3111.1,0.00427041]
[1644942494799,1.60701,3111.6,3111.2,0.0027111]
[1644942494997,0.8036,3111.5,3111.2,0.0027111]
[1644942495596,0.8036,3111.5,3110.9,0.00427041]
[1644942495794,0.8036,3111.5,3111.2,0.00271113]
[1644942495995,0.80346,3111.6,3111.2,0.00271113]
[1644942496597,3.28556217,3111.5,3111.2,0.00271113]
[1644942496797,19.52346,3111.6,3111.2,0.00271113]
[1644942496798,1.60702,3111.6,3111.2,0.00271113]
[1644942496995,3.2144421,3111.5,3111.2,0.00271113]
[1644942497196,3.2144421,3111.5,3111.2,0.0027111]
[1644942497394,1.18132028,3111.4,3111.2,0.0027111]
[1644942497996,0.80359,3111.3,3110.8,0.00527041]
[1644942498242,0.80359,3111.3,3111.1,0.00271116]
[1644942499244,0.80359,3111.3,3110.8,0.00527041]
[1644942499444,1.6072196,3111.2,3111.0,0.00271122]
[1644942499946,0.80361,3111.2,3111.0,0.00271122]
[1644942500346,0.80361,3111.2,3110.8,0.00527041]
[1644942500546,0.80361,3111.2,3110.9,0.00271128]
[1644942500745,1.60723,3111.2,3110.9,0.00271128]
[1644942501147,1.6071921,3111.2,3110.9,0.00271128]
[1644942501545,0.8035721,3111.2,3110.8,0.00527041]